[Event "Benidorm Open-A 2022"]
[Site "Benidorm"]
[Date "2022.12.08"]
[Round "6.4"]
[White "Sarkar, Justin"]
[Black "Assylov, Miras"]
[Result "1/2-1/2"]
[ECO "B10"]
[WhiteElo "2350"]
[BlackElo "2025"]
[Annotator "TA"]
[PlyCount "61"]
[EventDate "2022.12.03"]
[EventType "swiss"]
[EventCountry "ESP"]
[SourceTitle "playchess.com"]
[Source "ChessBase"]
[SourceQuality "1"]
[TimeControl "5400+30"]

{[%evp 9,61,11,16,16,26,16,16,0,0,0,0,0,0,0,0,0,0,0,17,20,13,0,46,41,49,36,46,-29,81,0,0,0,0,-64,29,0,0,0,0,0,0,0,0,0,0,0,0,0,0,0,0,0,0,0]} 1. e4 c6 2. Nc3 d5 3. Nf3 Nf6 4. e5 Ne4 5. Ne2 Qb6 {[%csl Ge4][%cal Rb6f2] [#]} 6. d4 {B11: Caro-Kann: Two Knights Variation.} e6 7. Ng3 c5 8. Bd3 Nxg3 $1 9. fxg3 {aiming for Ng5.} Nc6 10. O-O cxd4 11. Qe2 h6 {Inhibits Ng5.} 12. a3 Bd7 13. b4 a6 14. g4 Be7 15. g5 O-O-O (15... hxg5 $11 {feels stronger.} 16. Nxg5 Bxg5 17. Bxg5 Qc7) 16. gxh6 $14 gxh6 17. Bd2 {[#]} f6 $146 ({Predecessor:} 17... Nb8 18. Be1 Ba4 19. Bf2 Nc6 20. c3 Qc7 21. cxd4 Kb8 22. Be3 Rdg8 23. Qd2 h5 {1-0 (44) Tauber,H (2501)-Rausis,I (2508) ICCF email 2020}) 18. Bf4 ({White should try} 18. exf6 $14 Bxf6 19. Rab1) 18... Rhg8 (18... f5 $11) 19. a4 (19. b5 $16 axb5 20. exf6 Bxf6 21. a4) 19... Rg4 ({Of course not} 19... Qxb4 20. Rab1 Qa5 21. Bd2) 20. exf6 $1 Bxf6 21. a5 (21. Bxh6 $11 e5 22. b5) 21... Qa7 (21... Qxb4 $15 22. Ne5 {[#]} Rxf4 $1 23. Nxc6 Rxf1+ 24. Rxf1 bxc6 25. Rxf6 Qxa5 26. Bxa6+ Kb8 27. Qe5+ Ka7) 22. Ne5 (22. Bd6 $5 {[%cal Rf3d2]} Rdg8 23. Ne1 $11) 22... Nxe5 {The position is equal.} ({Don't take} 22... Rxf4 23. Nxc6 Rxf1+ 24. Rxf1 bxc6 25. Rxf6 $16 (25. Bxa6+ $2 {perishes.} Kb8 $19)) 23. Bxe5 Re4 $1 24. Bxe4 d3+ 25. Qf2 Qxf2+ 26. Kxf2 Bxe5 27. Bxd3 Bxa1 28. Rxa1 $11 {KRB-KRB} e5 29. c3 Kc7 30. Rf1 Rf8+ 31. Ke3 {Weighted Error Value: White=0.19 (very precise) /Black=0.16 (very precise)} 1/2-1/2

[Event "Benidorm Open-A 2022"]
[Site "Benidorm"]
[Date "2022.12.08"]
[Round "6.5"]
[White "Mannion, Stephen R"]
[Black "Christiansen, Johan-Sebastian"]
[Result "0-1"]
[ECO "C72"]
[WhiteElo "2227"]
[BlackElo "2582"]
[Annotator "TA"]
[PlyCount "66"]
[EventDate "2022.12.03"]
[EventType "swiss"]
[EventCountry "ESP"]
[SourceTitle "playchess.com"]
[Source "ChessBase"]
[SourceQuality "1"]
[TimeControl "5400+30"]

{[%evp 17,66,14,20,7,10,0,0,0,0,0,0,-4,0,-12,-1,-10,0,0,0,0,5,-12,0,-54,-55,-92,-83,-75,-75,-160,-152,-162,-160,-179,-160,-210,-200,-196,-160,-164,-131,-129,-131,-156,-135,-172,-158,-208,-214,-654,-639]} 1. e4 e5 2. Nf3 Nc6 3. Bb5 a6 4. Ba4 d6 5. O-O Bd7 6. c3 Nge7 7. d4 Ng6 8. Re1 Be7 9. Nbd2 O-O $1 {9...0-0 is better than 9...h6.} 10. Bc2 {C75: Ruy Lopez: Deferred Steinitz: 5 c3 Bd7 6 d4 without ...g6.} exd4 {[#]} 11. cxd4 $146 ({Predecessor:} 11. Nxd4 Nxd4 12. cxd4 c5 13. Nb3 c4 14. Nd2 b5 15. Nf1 Bg5 16. Ne3 Ne7 17. Bd2 Nc6 {1-0 (39) Vallejo Pons,F (2716)-Jurcik,M (2473) Batumi 2018}) 11... Bf6 12. d5 {The position is equal.} Nb4 13. Bb1 {[#] Strongly threatening a3.} a5 $1 14. Nf1 (14. a3 $5 Na6 $8 15. Bc2 $11) 14... Re8 15. a3 Na6 16. Ng3 Nc5 17. Bc2 b5 18. Rb1 b4 19. Nd4 Rb8 20. Be3 (20. b3 $11) 20... Ne5 $1 $15 {[%cal Bg6e5,Be5g4,Bg4e3][%mdl 32]} 21. axb4 Rxb4 22. b3 Ng4 {Black is much more active.} 23. Nc6 (23. Qd2 $142) 23... Nxe3 $1 $17 24. Rxe3 Bxc6 25. dxc6 g6 26. Qg4 (26. Rf3 $17 {keeps fighting.}) 26... Bg7 $19 27. Rbe1 Ne6 {[%cal Of7f5,Bc5e6,Be6d4,Bd4c6,Bc6e5][%mdl 32]} 28. Qd1 {Against f5} Nd4 29. Ne2 Nxc6 30. Qd5 Qd7 31. Rd1 Re5 32. Qd3 (32. Qd2 $17) 32... Rc5 33. Rh3 {[#]} (33. Re1) 33... Ne5 {Weighted Error Value: White=0.36/Black=0.06 (flawless)} 0-1

[Event "Benidorm Open-A 2022"]
[Site "Benidorm"]
[Date "2022.12.08"]
[Round "6.6"]
[White "Chernikov, Vladimir"]
[Black "Van Delft, Merijn"]
[Result "1/2-1/2"]
[ECO "A05"]
[WhiteElo "2247"]
[BlackElo "2367"]
[Annotator "TA"]
[PlyCount "60"]
[EventDate "2022.12.03"]
[EventType "swiss"]
[EventCountry "ESP"]
[SourceTitle "playchess.com"]
[Source "ChessBase"]
[SourceQuality "1"]
[TimeControl "5400+30"]

{[%evp 9,60,0,6,0,0,0,0,0,11,8,14,5,6,0,0,-3,14,4,9,7,31,22,13,21,18,17,15,0,0,0,16,13,12,0,0,0,0,-9,0,0,0,0,0,0,0,0,0,0,0,0,0,0,0]} 1. Nf3 Nf6 2. b3 d5 3. Bb2 Bf5 4. e3 e6 5. d4 Be7 6. Bd3 {D04: Colle System.} O-O 7. O-O c6 8. c4 Bxd3 9. Qxd3 Ne4 10. Nfd2 {[#]} f5 $146 ({Predecessor:} 10... Nxd2 11. Nxd2 Nd7 12. e4 dxe4 13. Nxe4 Nc5 14. Nxc5 Bxc5 15. Rad1 Be7 16. f4 g6 {0-1 (39) Speelman,J (2620)-Miles,A (2600) Hastings 1996}) 11. Ba3 Bxa3 12. Nxa3 Qa5 13. Nab1 Na6 14. a3 b5 15. f3 Nxd2 {The position is equal.} 16. Nxd2 (16. Qxd2 {simplifies} Qxd2 17. Nxd2 bxc4 18. bxc4 c5 19. Rfc1) 16... bxc4 $1 17. bxc4 Rab8 18. Rab1 Rxb1 19. Rxb1 Rb8 20. Rxb8+ Nxb8 {[%cal Ba6b8,Bb8d7,Bd7b6,Bb6c4][%mdl 32]} 21. cxd5 cxd5 $11 {[%mdl 4096] Endgame KQN-KQN} 22. Kf2 Nd7 23. Ke2 Nb6 24. Qb3 Kf7 25. f4 h6 26. Nf3 Qa6+ 27. Kf2 Nc4 28. Ne5+ Nxe5 29. fxe5 Qc6 30. h3 Kg6 {A balanced but interesting game.   Weighted Error Value: White=0.03 (flawless) /Black=0.03 (flawless)} 1/2-1/2

[Event "Benidorm Open-A 2022"]
[Site "Benidorm"]
[Date "2022.12.08"]
[Round "6.7"]
[White "Vignesh B"]
[Black "Escartin Lacasa, Jose"]
[Result "1-0"]
[ECO "A39"]
[WhiteElo "2032"]
[BlackElo "2277"]
[Annotator "TA"]
[PlyCount "85"]
[EventDate "2022.12.03"]
[EventType "swiss"]
[EventCountry "ESP"]
[SourceTitle "playchess.com"]
[Source "ChessBase"]
[SourceQuality "1"]
[TimeControl "5400+30"]

{[%evp 22,85,40,39,54,41,41,38,37,25,25,25,25,25,25,24,25,4,10,19,47,47,81,78,118,91,233,119,419,406,902,879,800,730,611,300,756,718,738,681,726,723,706,692,742,728,800,799,977,966,1583,1277,1051,1259,1138,1108,981,976,914,727,1283,1227,1255,1121,5832,3308]} 1. c4 c5 2. Nf3 Nf6 3. g3 g6 4. Bg2 Bg7 5. O-O O-O 6. Nc3 Nc6 7. d4 cxd4 8. Nxd4 Nxd4 9. Qxd4 d6 10. Qd2 Qc7 11. b3 Bd7 12. Bb2 Rac8 {A39: Symmetrical English vs ...g6: 4 Bg2 Bg7 5 Nf3 Nf6 6 0-0 0-0 7 d4.} 13. Rac1 a6 14. Rfd1 Rfe8 {[#] White is slightly better.} 15. Nd5 $146 ({Predecessor:} 15. e4 Qb8 16. Ne2 b5 17. c5 Bc6 18. cxd6 exd6 19. Rxc6 Rxc6 20. e5 d5 21. exf6 Bxf6 22. Bxd5 {1-0 (66) Burg,B (2228)-Pitica,S (1939) Iasi 2014}) 15... Nxd5 16. Bxg7 Kxg7 17. Bxd5 {[%cal Oc4c5]} Bc6 18. h4 (18. Kg2 {simplifies} f6 19. h4 h5 20. a4) 18... h5 (18... Qd7 {seems wilder.} 19. Bf3 Qf5 20. Kg2 h5) 19. Qf4 Bxd5 20. Rxd5 Red8 {[%cal Ob7b5]} (20... b5 {simplifies} 21. Qd4+ f6 22. c5 dxc5 23. Rdxc5 Qb7) 21. Rcd1 {[%cal Oc4c5,Bc1d1,Bd1d3,Bd3f3][%mdl 32]} Qb6 {Against c5} 22. R1d3 {White is more active. White stays focused until the end.} (22. g4 {keeps more tension.} hxg4 23. h5 g3 24. Qxg3 Rh8 25. hxg6 Rcg8 26. gxf7+ Kxf7 27. Rf5+) 22... Qb4 23. Rf3 f6 {[#]} (23... Rf8 $16) 24. Kg2 ({White should play} 24. g4 $1 $18) 24... Rc7 $2 {[%mdl 8192]} (24... Rc5 $16 {was worth a try.}) 25. g4 $18 hxg4 (25... Rh8 $142 26. gxh5 Rxh5 27. Rxh5 gxh5) 26. Qxg4 {White wants to mate with Rg3.} Rg8 27. Rg3 Kf7 28. Rh5 ({Not} 28. Re3 f5 29. Qd4 Rg7 $18) (28. h5 $142 {[%cal Rh5g6]} g5 29. h6) 28... Rg7 {[#]} (28... Qb6 29. Rh7+ (29. Rh6 Qc6+ 30. f3 Qd7 $16) 29... Ke8) 29. Rh7 $3 {[%mdl 512] White is clearly winning.} Rxh7 30. Qxg6+ Ke6 31. Qxh7 {[%mdl 4096] Endgame Re3+ would kill now. KQR-KQR} Kd7 32. Qf5+ Kc6 33. h5 {[%cal Bh4h5,Bh5h6][%mdl 32]} Qd2 34. e3 Qd1 35. h6 {And now h7 would win.} e6 {Prevents h7.} 36. Qxe6 Qh5 37. Qd5+ ({Less strong is} 37. Rg7 Rxg7+ 38. hxg7 Qg6+ 39. Kf3 Qxg7 40. Qc8+ Kb6 $16) 37... Qxd5+ 38. cxd5+ Kxd5 {KR-KR} 39. Rg7 Rc8 40. Rxb7 Ke4 41. h7 f5 42. Re7+ Kd5 43. Kf3 {Weighted Error Value: White=0.32/Black=0.50} 1-0

[Event "Benidorm Open-A 2022"]
[Site "Benidorm"]
[Date "2022.12.08"]
[Round "6.8"]
[White "Rajarishi Karthi"]
[Black "Docx, Stefan"]
[Result "1-0"]
[ECO "A54"]
[WhiteElo "2239"]
[BlackElo "2446"]
[Annotator "TA"]
[PlyCount "55"]
[EventDate "2022.12.03"]
[EventType "swiss"]
[EventCountry "ESP"]
[SourceTitle "playchess.com"]
[Source "ChessBase"]
[SourceQuality "1"]
[TimeControl "5400+30"]

{[%evp 10,55,3,0,0,-1,0,-24,0,-25,6,-58,-72,-85,0,0,0,0,-15,6,23,-41,-27,-120,-116,-185,-179,-187,-189,-465,-449,-423,-359,-752,-735,-1641,205,190,195,181,172,134,138,140,1639,1610,1545,1552]} 1. d4 Nf6 2. c4 d6 3. Nc3 e5 4. e4 exd4 5. Qxd4 Nc6 6. Qd1 g6 {A53: Old Indian Defence without Nf3.} 7. f3 Bg7 8. Be3 O-O {Black has an edge.} 9. Qd2 Be6 10. Nd5 (10. b3 $11) 10... Ne5 $15 11. Rc1 {[#]} Nxd5 $146 ({Black should try} 11... Bxd5 $17 12. cxd5 c6 13. dxc6 bxc6) ({Predecessor:} 11... c6 12. Nf4 Qe7 13. Be2 Rfd8 14. Nxe6 Qxe6 15. Nh3 d5 16. cxd5 cxd5 17. Nf4 Qd7 18. Nxd5 Nxd5 19. exd5 Qxd5 20. Qxd5 Rxd5 {½-½ (36) Koneru,H (2574)-Harika,D (2507) Kolkata 2022}) 12. cxd5 $11 Bd7 13. Ne2 f5 14. exf5 Bxf5 {[%cal Bd7f5,Bf5e4,Be4d5,Bd5c6][%mdl 32]} (14... Qe7 $5) 15. Nd4 (15. Ng3 $11) 15... Qe7 $15 16. Kf2 (16. Be2 $11 {keeps the balance.}) 16... Be4 $1 $17 17. Ne6 {[#]} (17. Bg5 $17 Qf7 18. Be2 Bxd5 19. Rhd1) 17... Rxf3+ $1 $19 {[%mdl 512]} 18. Kg1 {[%cal Oc1c7] [#]} (18. gxf3 $2 {loses.} Qh4+ 19. Kg2 Qg4+ 20. Kf2 Qxf3+ 21. Ke1 Qxh1 $19) 18... Bxd5 $1 {[%mdl 512]} 19. Nxc7 {[#]} (19. Qxd5 {was worth a try.} c6 20. Qb3 (20. Bg5 $2 Bf6 $19) 20... Rxe3 21. Qxe3 Qxe6 22. h4) (19. Nxg7 c6) 19... Bc6 $1 20. Nxa8 {[#]} Rxe3 {[%mdl 64]} 21. h4 {Prevents Qg5.} (21. Qxe3 Nf3+ 22. Qxf3 (22. Kf2 $2 Bd4 $19) 22... Bd4+ 23. Qf2 Bxf2+ 24. Kxf2 Qf6+ 25. Ke1 Qxb2 26. Rxc6 bxc6 27. h4) 21... Bh6 {This pair of bishops is nice.} 22. Rc3 {[%cal Bc1c3,Bc3e3,Be3e7][%mdl 32]} Kg7 $4 {[%mdl 8192]} 23. Rxe3 $18 {[%cal Oh4h5] Black must now prevent h5!} Nf3+ 24. Kf2 $1 Ne5 25. Be2 {[%cal Od2d4] Inhibits Ng4+. aiming for Qd4!} Qf8+ 26. Ke1 {[%cal Oh4h5] Threatens to win with h5!} Qxa8 $2 {[%mdl 8192]} (26... Bxe3 $16 27. Qxe3 Qxa8) 27. Qxd6 $1 Nf7 28. Re7 {Quite a comeback for White.   Weighted Error Value: White=0.81/Black=0.26 (precise)} 1-0

[Event "Benidorm Open-A 2022"]
[Site "Benidorm"]
[Date "2022.12.08"]
[Round "6.10"]
[White "Harshad S"]
[Black "Kuipers, Eelco"]
[Result "1/2-1/2"]
[ECO "C41"]
[WhiteElo "2202"]
[BlackElo "2311"]
[Annotator "TA"]
[PlyCount "40"]
[EventDate "2022.12.03"]
[EventType "swiss"]
[EventCountry "ESP"]
[SourceTitle "playchess.com"]
[Source "ChessBase"]
[SourceQuality "1"]
[TimeControl "5400+30"]

{[%evp 16,39,27,34,30,32,37,31,25,25,22,6,0,8,11,0,16,0,26,25,12,0,16,0,4,0]} 1. e4 d6 2. d4 Nf6 3. Nc3 e5 4. Nf3 Nbd7 5. Bc4 Be7 6. O-O O-O 7. Re1 c6 8. a4 a5 9. h3 Nb6 $1 {9...Nb6 is better than 9...exd4. C41: Philidor Defence.} 10. Ba2 Nfd7 11. Be3 exd4 {White is slightly better.} 12. Bxd4 (12. Qxd4 {is more complex.} Nc5 13. Rad1 Re8 14. h4) 12... Nc5 13. Bxc5 dxc5 14. Qe2 Qd6 15. Rad1 Qg6 16. Ne5 Qf6 (16... Qg5 $5 {[%cal Rg5e5]} 17. Nf3 Qg6 $11) 17. Ng4 Qg6 18. Ne5 {The position is equal.} Qf6 19. Ng4 Qg6 20. Ne5 {[#]   Weighted Error Value: White=0.07 (flawless) /Black=0.05 (flawless)} {Predecessor:} Qg5 $146 1/2-1/2

[Event "Benidorm Open-A 2022"]
[Site "Benidorm"]
[Date "2022.12.08"]
[Round "6.11"]
[White "Ram Aravind L N"]
[Black "Roe, Simon J"]
[Result "1-0"]
[ECO "C41"]
[WhiteElo "2272"]
[BlackElo "2146"]
[Annotator "TA"]
[PlyCount "69"]
[EventDate "2022.12.03"]
[EventType "swiss"]
[EventCountry "ESP"]
[SourceTitle "playchess.com"]
[Source "ChessBase"]
[SourceQuality "1"]
[TimeControl "5400+30"]

{[%evp 14,69,48,35,26,4,25,10,28,-2,35,0,25,25,22,22,21,20,32,19,35,62,24,-107,12,0,39,37,39,41,42,57,83,95,87,78,87,84,90,73,109,46,111,114,137,131,290,154,439,416,540,537,487,450,439,431,884,891]} 1. e4 e5 2. Nf3 {[%cal Bg1f3,Bf3d4,Bd4b3][%mdl 32]} d6 3. d4 exd4 4. Nxd4 Nf6 5. Nc3 Be7 6. Be2 O-O 7. O-O c5 8. Nb3 Nc6 {C41: Philidor Defence.} 9. f4 Re8 10. Bf3 Bf8 {The position is equal.} 11. Be3 Be6 {[%cal Oe6f5] [#]} 12. g4 $146 ({Predecessor:} 12. h3 a6 13. Qd2 Rc8 14. g4 b5 15. Qg2 b4 16. Ne2 Bc4 17. Nd2 Bxe2 18. Bxe2 Nxe4 19. Nxe4 {0-1 (30) Duzhakov,I (2403)-Chigaev,M (2497) St Petersburg 2015}) 12... d5 13. exd5 Bxd5 {[%mdl 64]} 14. Nxd5 Nxd5 {[%cal Bf6d5,Bd5f4,Bf4e2][%mdl 32]} 15. Bxc5 Nxf4 (15... Bxc5+ {simplifies} 16. Nxc5 Nxf4 17. Qxd8 Raxd8 18. Bxc6 Ne2+) 16. Bxc6 {A strong pair of Bishops.} (16. Qxd8 {simplifies} Raxd8 17. Bxf8 Kxf8 18. Bxc6 Ne2+ 19. Kf2) 16... Ne2+ (16... Bxc5+ {simplifies} 17. Nxc5 Ne2+ 18. Kg2 bxc6 19. Qxd8 Raxd8 20. Rad1 Rd4) 17. Kg2 (17. Kh1 {simplifies} bxc6 18. Qxd8 Rexd8 19. Bxf8 Rxf8 20. Rad1) 17... bxc6 18. Bxf8 (18. Qxd8 $1 $11 {was the only way to keep the balance.} Raxd8 19. Rad1) 18... Kxf8 ({Black should play} 18... Qh4 $17 19. Qd3 Qxg4+ 20. Kh1 Rad8) 19. Rf2 Qxd1 20. Rxd1 g5 $1 21. Rf5 $36 {[%cal Og2f3][%mdl 2048] Kf3! is the strong threat. White has good play.} Nf4+ 22. Kf3 {[%cal Od1d7] And now Rd7! would win.} h6 {[#]} 23. Rd7 $1 Re7 24. Rxe7 {White is more active.} Kxe7 $16 {[%mdl 4096] Endgame KRN-KRN} 25. Ra5 Ne6 26. Ra6 Kd7 27. c4 (27. h3 $16) 27... h5 (27... Kd6 $14) 28. gxh5 {[%cal Bg4h5,Bh5h6,Bh6h7][%mdl 32]} f5 29. h6 Kc7 $2 (29... Rh8 $16) 30. Ra5 ({White must play} 30. h7 $18 {[%cal Oa6a7] Hoping for Rxa7+!} g4+ 31. Kg3) 30... c5 $2 {This costs Black the game.} (30... Rh8 $16 {is a better defense.}) 31. Ra6 $18 ({Don't play} 31. Nxc5 Nd4+ 32. Kg3 Rh8 $18) 31... Re8 32. h7 {[%cal Oa6e6] aiming for Rxe6! White is clearly winning.} Kd7 33. Rxa7+ Kd6 34. Rf7 Ke5 {[#]} (34... Rh8 $142 35. Kg3 g4) 35. Re7 $3 {[%mdl 512] Weighted Error Value: White=0.22 (precise) /Black=0.47} 1-0

[Event "Benidorm Open-A 2022"]
[Site "Benidorm"]
[Date "2022.12.08"]
[Round "6.12"]
[White "Levi, Netanel"]
[Black "Ibanez Aullana, Ramon"]
[Result "0-1"]
[ECO "B60"]
[WhiteElo "2179"]
[BlackElo "2270"]
[Annotator "TA"]
[PlyCount "82"]
[EventDate "2022.12.03"]
[EventType "swiss"]
[EventCountry "ESP"]
[SourceTitle "playchess.com"]
[Source "ChessBase"]
[SourceQuality "1"]
[TimeControl "5400+30"]

{[%evp 15,82,25,62,72,102,107,115,72,73,66,52,66,93,68,59,45,77,66,61,71,66,58,70,61,170,179,322,298,442,444,420,420,410,120,130,113,98,110,108,109,100,114,117,122,98,35,30,33,32,-91,-106,-181,-158,-347,-345,-330,-312,-368,-296,-658,-583,-1006,-989,-2367,-2235,-2139,-2041,-2097,-1708]} 1. e4 c5 2. Nf3 d6 3. d4 cxd4 4. Nxd4 Nf6 5. Nc3 Nc6 6. Bg5 Qa5 7. Bxf6 gxf6 8. Nb3 Qd8 9. Qh5 {B60: Sicilian: Richter-Rauzer: Unusual Black 6th moves and 6...Bd7 without 7 Qd2.} e6 10. O-O-O Qb6 {[#]} 11. Nb5 $146 {White is better.} ({Predecessor:} 11. Qh4 Be7 12. Nb5 Ne5 13. f4 Ng6 14. Qg3 Bd7 15. Nc3 O-O-O 16. Nd4 Rde8 17. Be2 {½-½ (55) Hofrichter,J-Palmer,C (2125) Schoeneck 1998}) 11... a6 12. Nxd6+ (12. N5d4 Bd7 $11) 12... Bxd6 13. Rxd6 {Black must now prevent Qh4.} Qxf2 14. Qd1 Ke7 15. Kb1 Rd8 16. Rxd8 Nxd8 17. Bd3 {[%cal Oe4e5]} Nc6 {Inhibits e5.} 18. Qh5 b6 19. g4 {Hoping for Qh6.} (19. Qxh7 Qxg2 20. Rf1 Qg5 $11) 19... Qg2 (19... Ne5 $14) 20. Rf1 $18 {Qh6 is the strong threat.} Ne5 (20... e5 $142) 21. Qh6 Ng6 (21... Nd7 {was called for.} 22. e5 (22. Qxh7 Qxg4 23. Nd4 Bb7 $11) 22... Bb7 23. exf6+ Kd6 24. Qf4+ (24. Qxh7 Ne5 $18) 24... e5 25. Qb4+ (25. Qc4 Qd5 $18) 25... Kc7) 22. Qg7 (22. Qxh7 Qxg4 23. Nd4 Bb7 $14) 22... Ra7 {[%cal Ba8a7,Ba7d7,Bd7d3][%mdl 32]} 23. Qxf6+ Ke8 24. Qd4 (24. e5 $18 {has better winning chances.}) 24... Rd7 $16 25. Qxb6 Rxd3 {[%mdl 64] [#]} 26. Rg1 (26. Qc6+ $2 Bd7 27. Qa8+ Ke7 $19) 26... Rd6 27. Qc5 (27. Qxd6 $2 Qxg1+ 28. Nc1 Qxg4 $19) 27... Qxh2 {And now ...Bb7 would win.} 28. Qxc8+ Rd8 29. Qc6+ (29. Qxa6 $2 Qxg1+ 30. Nc1 Rd1 31. Qa4+ Ke7 $19) 29... Kf8 30. Rf1 (30. Rc1 $16) 30... Qe2 $14 {[%csl LRf1,LRg4]} 31. Rc1 Qxg4 32. Nc5 {[#]} (32. a4 $14 {keeps the upper hand.}) 32... Rd1 $1 $17 33. b3 (33. Qxa6 $2 Rxc1+ 34. Kxc1 Qg5+ 35. Kd1 Qxc5 $19) (33. Nd3 $17 {keeps fighting.}) 33... h5 $19 {[%cal Bh7h5,Bh5h4,Bh4h3][%mdl 32]} 34. Nd7+ $2 {Now White is beyond hope.} (34. Qxa6 $2 Rxc1+ 35. Kxc1 Qg1+ 36. Kb2 Qxc5 $19) (34. Nd3 $17 {was forced.}) 34... Ke7 {Active counter play!} (34... Kg7 $2 35. Qc3+ e5 36. Nxe5 Rxc1+ 37. Kb2 $19) 35. Nc5 h4 {Strongly threatening ...Ne5.} ({Not} 35... Kf6 36. Nd3 $17) 36. Qc7+ (36. Nxa6 Rxc1+ 37. Kb2 Qg1 $19) 36... Kf8 {aiming for ...Rxc1+.} 37. Nd7+ $2 (37. Nxa6 $2 {loses.} h3 38. Rxd1 Qxd1+ 39. Kb2 Qd2 $19) (37. Rxd1 Qxd1+ 38. Kb2 Qd4+ 39. Kb1) 37... Kg7 {Black is clearly winning.} 38. Qc3+ e5 39. Nc5 Rxc1+ 40. Kxc1 h3 41. Qd2 Qg1+ {Weighted Error Value: White=0.70/Black=0.25 (precise)} 0-1

[Event "Benidorm Open-A 2022"]
[Site "Benidorm"]
[Date "2022.12.08"]
[Round "6.13"]
[White "Rakshitta Ravi"]
[Black "Lohia, Sohum"]
[Result "1-0"]
[ECO "C77"]
[WhiteElo "2219"]
[BlackElo "2136"]
[Annotator "TA"]
[PlyCount "53"]
[EventDate "2022.12.03"]
[EventType "swiss"]
[EventCountry "ESP"]
[SourceTitle "playchess.com"]
[Source "ChessBase"]
[SourceQuality "1"]
[TimeControl "5400+30"]

{[%evp 12,53,17,10,10,6,16,15,14,4,2,-2,0,5,164,155,156,141,277,272,262,268,251,251,308,308,308,308,293,295,372,369,368,361,464,459,446,449,613,539,632,551,29973,29973]} 1. e4 e5 2. Nf3 Nc6 3. Bb5 {[%cal Bf1b5,Bb5a4,Ba4b3,Bb3d5][%mdl 32]} a6 4. Ba4 Nf6 5. Nc3 b5 6. Bb3 Bc5 7. d3 h6 {C77: Ruy Lopez: 3...a6 4 Ba4 Nf6, unusual lines.} 8. Nd5 d6 9. c3 O-O {The position is equal.} 10. Nxf6+ Qxf6 11. Bd5 Bd7 12. Rg1 {Black should prevent g4.} Kh7 $2 {[#]} (12... h5 $11) 13. g4 $1 $18 {[%cal Bg2g4,Bg4g5][%mdl 32]} Qe7 {[#]} 14. g5 $1 {Black must now prevent h4.} h5 {[#]} (14... g6 $16) 15. Nd4 $1 {[%mdl 512] [#]} g6 $146 (15... exd4 {leads to mate.} 16. Qxh5+ Kg8 17. g6) ({Predecessor:} 15... Nxd4 16. Qxh5+ Kg8 17. g6 Nf3+ 18. Kd1 Qh4 19. gxf7+ Rxf7 20. Qxf7+ Kh8 21. Qxg7# {1-0 (21) Pranesh,M (2437)-Karolczuk,I (2338) Mamaia 2022}) 16. Nxc6 Qe8 17. b4 Bxf2+ 18. Kxf2 {Strongly threatening Na5.} Bxc6 19. Qf3 Bxd5 20. exd5 c6 21. Bd2 cxd5 22. Qxd5 f6 23. gxf6 ({Weaker is} 23. Qxd6 Rd8 24. Qc5 (24. Qxa6 fxg5+ 25. Kg2 Rxd3 $11) 24... Rxd3 $18) 23... Rxf6+ 24. Ke2 e4 25. dxe4 Re6 26. Qg5 Rxe4+ 27. Kd3 {Black got outplayed after the opening.   Weighted Error Value: White=0.15 (very precise) /Black=0.77} 1-0

[Event "Benidorm Open-A 2022"]
[Site "Benidorm"]
[Date "2022.12.08"]
[Round "6.14"]
[White "Cruz Lledo, Pablo"]
[Black "Gugan G"]
[Result "1/2-1/2"]
[ECO "A40"]
[WhiteElo "2404"]
[BlackElo "2126"]
[Annotator "TA"]
[PlyCount "64"]
[EventDate "2022.12.03"]
[EventType "swiss"]
[EventCountry "ESP"]
[SourceTitle "playchess.com"]
[Source "ChessBase"]
[SourceQuality "1"]
[TimeControl "5400+30"]

{[%evp 10,64,45,33,53,30,35,-29,36,20,29,26,22,26,41,43,43,52,47,51,72,61,75,72,81,81,80,62,54,30,36,26,45,9,22,9,27,29,79,0,0,0,0,0,45,45,59,52,85,17,18,17,24,24,458,-7,-8]} 1. d4 e6 2. Nf3 f5 3. Bg5 Nf6 4. Nbd2 d5 5. e3 Bd6 6. c4 c6 {A80: Dutch Defence: Unusual White second moves.} 7. Ne5 O-O 8. f4 ({White should try} 8. Be2 $14) 8... Nbd7 (8... c5 $1 $11) 9. c5 Be7 {[#]} 10. Be2 $146 ({Predecessor:} 10. b4 Qe8 11. Be2 Ne4 12. Nxe4 fxe4 13. Bh5 g6 14. Bg4 Nxe5 15. dxe5 b6 16. O-O Ba6 17. Be2 Bxe2 18. Qxe2 bxc5 19. bxc5 {½-½ (19) Todorova,P-Eretova,K Plovdiv 1959}) 10... Nxe5 11. fxe5 Ne4 12. Bxe7 Qxe7 13. O-O Bd7 {[%cal Bc8d7,Bd7e8,Be8h5,Bh5g6,Bg6f5][%mdl 32]} 14. Nxe4 (14. Qc1 {is interesting.} Qg5 15. Nxe4 fxe4 16. Qd2) 14... dxe4 15. Qd2 Be8 16. b4 Rd8 17. a4 g5 18. Bc4 Kg7 19. g3 Bh5 20. Be2 Bg6 21. Rad1 h5 {[%cal Bh7h5,Bh5h4][%mdl 32]} 22. b5 h4 23. g4 (23. a5 {seems wilder.} hxg3 24. hxg3 Rh8 25. a6) 23... fxg4 (23... Kh6 $11) 24. Rxf8 (24. Bxg4 $16 Bf5 25. Qg2) 24... Rxf8 $11 25. Bxg4 Bf5 $1 26. Qg2 Kh6 27. Rf1 Qe8 28. Be2 Qd8 29. Bc4 {White is more active.} (29. Bd1 $16) 29... g4 30. Rf4 Rg8 31. Qf1 {And now Rxf5 would win.} Kg6 {[%mdl 8192] [#]} (31... Qg5 $1 $11) 32. Rxf5 $2 exf5 {Weighted Error Value: White=0.34/Black=0.36} 1/2-1/2